bitfinex/quotes_ETHUSD_20260227
["timestamp","ask_amount","ask_price","bid_price","bid_amount"]
[1772213743322,3.46608813,1917.9,1917.1,6.28100187]
[1772213743533,1.138,1917.8,1916.7,2.84615323]
[1772213743703,1.61759765,1917.8,1916.8,5.21690722]
[1772213743904,1.61759765,1917.8,1916.8,1.30425709]
[1772213743905,3.46508813,1917.6,1916.8,1.30425709]
[1772213744092,1.30378096,1917.5,1916.8,1.30425709]
[1772213744731,1.30375687,1917.6,1916.8,1.78115323]
[1772213745029,1.30368523,1917.7,1916.9,0.47689614]
[1772213745594,3.46508813,1917.5,1916.5,1.30552323]
[1772213745799,3.46508813,1916.9,1916.3,0.0011]
[1772213746108,1.30425709,1916.8,1916.3,0.0011]
[1772213746301,1.30425709,1916.8,1916.2,0.0011]
[1772213746800,3.46508813,1916.7,1916.1,0.0011]
[1772213747002,3.46508813,1916.4,1915.6,1.781948]
[1772213747218,1.30425709,1916.8,1915.7,0.47689614]
[1772213747397,4.60408813,1916.7,1915.7,0.47689614]
[1772213747617,5.21610879,1917.2,1915.7,0.47689614]
[1772213747851,0.00153886,1917.0,1915.9,0.47689614]
[1772213748006,8.68238869,1916.8,1915.9,2.84670716]
[1772213748325,1.30432514,1916.7,1915.9,2.84670716]
[1772213748710,1.30432514,1916.7,1915.8,1.30491145]
[1772213749239,1.139,1916.6,1915.8,1.30491145]
[1772213749602,1.61859765,1916.6,1915.7,1.30496932]
[1772213750198,1.61859765,1916.6,1915.6,5.22015759]
[1772213750199,1.30446125,1916.5,1915.6,1.30501961]
[1772213751227,2.44346125,1916.5,1915.6,1.30501961]
[1772213751540,1.30444512,1916.6,1915.6,1.78191575]
[1772213751715,2.44344512,1916.6,1915.7,0.47689614]
[1772213752397,5.217016,1916.9,1915.8,1.30493788]
[1772213752638,5.217016,1916.9,1915.8,1.78183402]
[1772213752815,1.139,1916.8,1915.8,1.78183402]
[1772213753138,1.139,1916.8,1915.9,0.47689614]
[1772213753305,1.139,1916.8,1916.0,1.53989614]
[1772213753634,0.00153886,1917.0,1916.0,1.53989614]
[1772213753802,2.44571503,1917.0,1916.1,0.47689614]
[1772213754562,0.00153886,1917.0,1916.3,0.47689614]
[1772213755028,1.30567902,1917.0,1916.3,0.47689614]
[1772213755810,1.30567902,1917.0,1916.2,1.30466548]
[1772213756015,2.44467902,1917.0,1916.2,1.30466548]
[1772213756701,0.00153886,1917.0,1916.2,0.47689614]
[1772213757230,1.30566791,1917.0,1916.2,0.47689614]
[1772213757728,0.001,1916.9,1916.1,5.21866193]
[1772213759115,0.001,1916.9,1916.2,0.47689614]
[1772213760952,0.001,1916.9,1916.1,5.21866193]
[1772213761242,1.30518905,1916.9,1916.1,5.21866193]
[1772213761740,0.001,1916.9,1916.2,0.47689614]
[1772213763244,0.00153886,1917.0,1916.5,0.47689614]
[1772213763448,0.001,1917.8,1916.9,0.47689614]
[1772213764139,1.30458053,1917.8,1916.9,0.47689614]
[1772213764521,0.001,1917.8,1916.9,0.47689614]
[1772213765042,0.001,1917.8,1917.1,0.47689614]
[1772213765348,0.001,1917.8,1917.3,1.30391696]
[1772213767148,0.001,1917.8,1916.9,1.30416264]
[1772213767354,0.48059765,1917.8,1916.8,2.37021277]
[1772213767660,1.30364499,1917.7,1916.8,2.37021277]
[1772213768148,1.30364499,1917.7,1916.7,5.21719027]
[1772213768149,5.24833077,1917.7,1916.7,1.30429217]
[1772213768318,1.133,1917.6,1916.7,1.30429217]
[1772213768963,1.61259765,1917.6,1916.7,1.30429217]
[1772213769122,0.47959765,1917.6,1916.4,1.78142546]
[1772213769324,3.46508813,1917.4,1916.4,1.78142546]
[1772213769524,1.30391696,1917.3,1916.4,1.78142546]
[1772213770735,0.001,1917.7,1916.4,1.78142546]
[1772213770736,0.001,1917.7,1916.5,0.47159155]
[1772213770931,5.21504336,1917.6,1916.5,0.47159155]
[1772213771126,6.34704336,1917.6,1916.5,0.47159155]
[1772213772322,1.30471297,1917.7,1916.7,0.47159155]
[1772213772725,0.001,1917.7,1916.8,0.47159155]
[1772213774576,0.001,1917.7,1917.0,0.47159155]
[1772213775068,0.001,1917.7,1916.9,1.30418905]
[1772213776748,1.30464499,1917.7,1916.8,5.21675622]
[1772213777077,1.30464499,1917.7,1916.8,5.68834777]
[1772213777576,0.001,1917.7,1916.9,0.47159155]
[1772213778774,0.001,1917.8,1917.2,0.47159155]
[1772213778970,0.001,1917.9,1917.4,0.47159155]
[1772213779655,1.79018394,1918.7,1917.4,0.47159155]
[1772213780777,1.79018394,1918.7,1917.5,1.77537251]
[1772213780981,1.30292795,1918.8,1917.7,0.47159155]
[1772213781750,0.48716619,1918.6,1917.5,1.30378096]
[1772213782059,1.30283841,1918.9,1917.7,0.47159155]
[1772213782262,1.30283841,1918.9,1917.8,1.53559155]
[1772213782852,1.7900046,1918.9,1917.9,1.30350904]
[1772213783381,3.95225432,1918.8,1917.9,1.30350904]
[1772213784273,1.131,1918.7,1917.9,1.30350904]
[1772213785065,1.30296554,1918.7,1917.6,5.68562773]
[1772213785783,1.30296554,1918.7,1917.7,0.47159155]
[1772213786294,2.92113173,1918.7,1917.7,0.47159155]
[1772213786663,2.43494606,1918.8,1917.7,0.47159155]
[1772213786858,1.30294606,1918.8,1917.8,1.30357701]
[1772213787170,0.00153886,1919.0,1918.3,0.47159155]
[1772213787490,0.00153886,1919.0,1918.5,0.47159155]
[1772213789171,0.00153886,1919.0,1918.6,1.30303346]
[1772213789586,0.001,1919.3,1918.8,3.93667968]
[1772213789887,0.001,1919.3,1918.8,1.53659155]
[1772213790051,1.79083511,1920.0,1918.9,0.47159155]
[1772213790995,1.79083511,1920.0,1919.0,1.30276185]
[1772213791167,3.46508813,1919.7,1918.8,2.36786541]
[1772213791369,0.48716619,1919.8,1918.8,2.36786541]
[1772213791886,4.76875705,1920.0,1918.8,2.36786541]
[1772213791887,1.30363056,1920.0,1918.9,0.47159155]
[1772213792083,1.79079675,1920.0,1918.9,0.47159155]
[1772213792990,1.131,1919.9,1918.9,0.47159155]
[1772213793197,1.79079675,1920.0,1919.0,1.30276185]
[1772213793707,0.48870505,1920.0,1919.0,1.30276185]
[1772213793856,0.00153886,1920.0,1919.1,0.47159155]
[1772213794213,0.00153886,1920.0,1919.3,0.47159155]
[1772213794358,0.001,1920.1,1919.4,0.47159155]
[1772213795008,0.001,1920.7,1919.3,3.46508813]
[1772213795291,0.001,1920.7,1919.6,0.47159155]
[1772213795509,0.001,1920.7,1919.7,1.53759155]
[1772213797303,0.001,1920.7,1919.8,1.30221898]
[1772213797520,0.001,1920.7,1919.9,0.47159155]
[1772213798808,0.001,1920.6,1919.9,0.47159155]
[1772213799186,0.001,1920.6,1919.8,1.79630363]
[1772213800001,0.001,1920.6,1919.9,0.49408465]
[1772213800774,0.001,1920.7,1920.2,0.45038748]
[1772213801012,0.1548857,1920.9,1920.5,0.45038748]
[1772213801013,0.0591402,1920.9,1920.5,0.45038748]
[1772213801222,1.30103117,1921.6,1920.5,0.45038748]
[1772213801424,1.78217589,1921.7,1920.7,0.45038748]
[1772213801585,1.78217589,1921.7,1920.8,1.065]
[1772213802490,5.20324621,1921.9,1920.8,1.51538748]
[1772213802804,6.33124621,1921.9,1920.9,0.45038748]
[1772213803404,1.30079608,1921.9,1921.0,1.30140551]
[1772213803800,2.46522111,1921.7,1920.9,1.30141884]
[1772213803972,3.59422111,1921.7,1920.9,1.30141884]
[1772213804174,0.4811897,1921.8,1920.9,1.30141884]
[1772213804370,3.76601719,1921.9,1920.9,1.30141884]
[1772213804371,4.89501719,1921.9,1920.9,1.30141884]
[1772213804584,1.30079608,1921.9,1921.0,0.45038748]
[1772213804794,0.00153886,1922.0,1921.2,0.45038748]
[1772213805101,1.30227984,1922.0,1920.9,1.75180632]
[1772213805429,0.00153886,1922.0,1920.9,1.75180632]
[1772213805777,0.00153886,1922.0,1921.0,0.45038748]
[1772213806616,2.46522111,1921.9,1921.0,0.45038748]
[1772213806769,2.46522111,1921.9,1921.1,1.065]
[1772213806975,0.00153886,1922.0,1921.1,1.065]
[1772213807195,4.07541081,1921.9,1920.9,1.30141884]
[1772213807399,1.30086377,1921.8,1920.9,1.30141884]
[1772213807972,3.76608488,1921.8,1920.9,1.30141884]
[1772213808174,1.6101897,1921.8,1920.9,1.30141884]
[1772213808377,2.94641081,1921.8,1920.9,1.30141884]
[1772213808577,4.07441081,1921.8,1920.9,1.30141884]
[1772213809002,2.94641081,1921.6,1920.8,2.36654102]
[1772213809374,8.17145566,1921.9,1920.9,0.45038748]
[1772213809593,8.17145566,1921.9,1920.5,5.20616409]
[1772213809594,2.46522111,1921.1,1920.5,0.45038748]
[1772213809793,2.94641081,1921.3,1920.3,1.30187991]
[1772213810375,0.4811897,1921.2,1920.3,1.30187991]
[1772213810589,1.6091897,1921.2,1920.3,1.30187991]
[1772213810792,2.46522111,1921.1,1920.3,1.30187991]
[1772213811001,2.46522111,1920.9,1920.2,2.23294771]
[1772213811300,0.4811897,1921.0,1920.2,2.23294771]
[1772213811499,1.30147326,1920.9,1920.0,5.20932971]
[1772213812088,5.68708277,1921.0,1920.1,0.45038748]
[1772213812089,1.30143414,1921.0,1920.1,0.45038748]
[1772213812701,1.78262384,1921.0,1920.0,5.20932971]
[1772213812904,0.4811897,1920.9,1920.0,5.20932971]
[1772213813511,2.46522111,1920.6,1920.0,0.00153886]
[1772213813710,2.46522111,1920.4,1919.7,1.30223442]
[1772213813883,1.127,1920.5,1919.7,1.30223442]
[1772213814080,2.46522111,1920.2,1919.5,0.45038748]
[1772213814291,2.94641081,1920.2,1919.3,2.36650921]
[1772213814513,2.46522111,1919.8,1919.3,1.064]
[1772213814693,2.46522111,1919.8,1919.1,1.75306125]
[1772213814896,2.94641081,1920.2,1919.2,0.45038748]
[1772213815102,2.46522111,1920.2,1919.3,0.45038748]
[1772213815286,2.46522111,1920.5,1919.3,0.45038748]
[1772213815490,2.46522111,1920.1,1919.4,1.30249036]
[1772213815709,2.46522111,1919.9,1919.0,1.75572031]
[1772213815923,2.46522111,1919.9,1919.1,1.30269397]
[1772213816105,4.07241081,1920.1,1919.1,1.75308145]
[1772213816308,2.46522111,1919.9,1919.1,1.30269397]
[1772213816515,2.46522111,1919.7,1919.0,0.00263886]
[1772213816828,2.46522111,1919.5,1919.0,0.00263886]
[1772213817112,2.46522111,1919.7,1919.0,0.00263886]
[1772213817414,2.46522111,1919.5,1918.8,1.063]
[1772213817622,2.46522111,1919.3,1918.7,0.0011]
[1772213817924,2.46522111,1919.1,1918.7,0.0011]
[1772213818121,2.46522111,1919.1,1918.4,1.063]
[1772213818329,2.46522111,1919.1,1918.4,2.36615904]
[1772213818621,2.46522111,1919.1,1918.4,2.36616531]
[1772213818828,2.46522111,1919.1,1918.1,5.21334056]
[1772213819016,2.46522111,1918.9,1918.1,1.30337312]
[1772213819600,1.30289764,1918.8,1918.1,1.30337312]
[1772213820095,1.30289764,1918.8,1918.0,6.27816861]
[1772213820096,2.46522111,1918.7,1918.0,2.36797519]
[1772213820316,2.46522111,1918.7,1918.0,1.06453886]
[1772213820903,2.46522111,1918.5,1918.0,1.06453886]
[1772213821218,2.46522111,1918.3,1917.6,1.75407646]
[1772213821522,2.46522111,1918.3,1917.5,1.3037411]
[1772213821818,1.30330518,1918.2,1917.5,1.3037411]
[1772213822002,3.76850817,1918.3,1917.5,1.3037411]
[1772213822604,1.30319577,1918.4,1918.2,0.0011]
[1772213822824,1.30319577,1918.4,1917.6,0.45038748]
[1772213822995,2.46522111,1918.1,1917.4,2.36680171]
[1772213823195,2.46522111,1918.1,1917.0,0.00263886]
[1772213823196,2.46522111,1917.9,1917.1,1.30405299]
[1772213823394,2.46522111,1917.7,1917.1,1.30405299]
[1772213823595,1.127,1917.9,1917.1,1.30405299]
[1772213823798,1.30351803,1917.9,1917.1,1.75444047]
[1772213824001,1.30323724,1918.3,1917.2,0.45038748]
[1772213824207,2.46522111,1918.2,1917.2,0.45038748]
[1772213824609,2.46522111,1917.8,1917.1,1.30405299]
[1772213825631,2.46522111,1917.8,1917.0,1.06563886]
[1772213825632,2.46522111,1917.6,1917.0,1.06563886]
[1772213825949,2.46522111,1917.6,1917.0,2.36975259]
[1772213826228,0.4811897,1918.1,1917.0,2.36975259]
[1772213826229,4.24958011,1918.4,1917.1,0.45038748]
[1772213826397,3.76839041,1918.4,1917.1,0.45038748]
[1772213828010,2.46522111,1917.8,1917.2,1.30398497]
[1772213828295,2.46522111,1917.8,1917.1,1.30399908]
[1772213830222,1.127,1918.2,1917.2,0.49108747]
[1772213830468,7.67817007,1918.4,1917.3,0.49108747]
[1772213830469,2.43022383,1918.4,1917.3,0.49108747]
[1772213830641,2.43022383,1918.4,1917.2,2.46522111]
[1772213830642,2.43022383,1918.4,1917.4,1.55508747]
[1772213831207,5.35281366,1918.4,1917.4,1.064]
[1772213831527,2.46522111,1918.0,1917.1,1.30399908]
[1772213831727,3.59322111,1918.0,1917.1,1.30399908]
[1772213831927,2.46522111,1917.8,1917.1,1.30399908]
[1772213832100,3.76884445,1917.8,1917.1,1.30399908]
[1772213832304,4.89669397,1918.0,1917.1,1.30399908]
[1772213832528,4.89667014,1918.0,1917.1,1.30399908]
[1772213832722,4.89667014,1918.0,1917.1,1.79508655]
[1772213833316,4.89667014,1918.0,1917.1,1.30399908]
[1772213833531,2.46522111,1917.8,1917.1,1.30399908]
[1772213834131,2.46522111,1917.6,1917.0,0.00263886]
[1772213834427,2.46522111,1917.4,1916.9,0.0011]
[1772213834619,2.46522111,1917.2,1916.7,0.0011]
[1772213834820,2.46522111,1917.2,1916.7,1.30542137]
[1772213835030,2.46522111,1917.2,1916.7,0.0011]
[1772213835328,2.92258983,1917.6,1917.3,0.0011]
[1772213835525,1.128,1917.4,1917.1,0.0011]
[1772213835726,3.59322111,1917.4,1916.7,1.30542268]
[1772213835928,1.129,1917.4,1916.7,1.79651015]
[1772213837205,5.21470966,1917.7,1916.7,1.79651015]
[1772213837206,1.30367759,1917.7,1916.7,1.79651015]
[1772213837425,0.00153886,1918.0,1916.9,0.49108747]
[1772213837706,1.30499282,1918.0,1916.9,0.49108747]
[1772213837908,0.00153886,1918.0,1916.9,0.49108747]
[1772213838318,0.00153886,1918.0,1917.0,1.79520849]
[1772213838746,0.00153886,1918.0,1917.1,0.49108747]
[1772213839050,0.00153886,1918.0,1917.2,1.065]
[1772213840308,0.00153886,1918.0,1917.3,1.30391696]
[1772213841008,0.00153886,1918.0,1917.4,0.49108747]
[1772213841438,0.00153886,1918.0,1917.3,1.30391696]
[1772213842714,0.00153886,1918.0,1917.5,2.95630858]
[1772213843035,0.00153886,1918.0,1917.6,1.065]
[1772213843440,0.00153886,1918.0,1917.6,1.55608747]
[1772213843938,0.001,1918.3,1917.6,1.55608747]
[1772213844143,1.30424752,1918.3,1917.3,1.79500443]
[1772213844308,0.001,1918.3,1917.7,1.30364499]
[1772213844504,0.001,1918.3,1917.8,1.55708747]
[1772213844940,0.00153886,1919.0,1918.0,0.49108747]
[1772213845108,1.30431194,1919.0,1918.2,0.49108747]
[1772213845308,1.30431194,1919.0,1918.2,1.55708747]
[1772213845309,0.00153886,1919.0,1918.2,1.55708747]
[1772213845809,1.30431512,1919.0,1918.2,1.066]
[1772213846015,4.22690495,1919.0,1917.9,0.49108747]
[1772213846341,4.22690495,1919.0,1918.1,1.30337312]
[1772213846342,0.00153886,1919.0,1918.1,1.30337312]
[1772213846704,0.45890758,1919.0,1918.1,1.30337312]
[1772213846909,2.92412869,1919.0,1918.0,1.79447488]
[1772213847624,0.001,1918.9,1918.0,1.79447488]
[1772213848547,3.78904198,1919.8,1918.8,2.95630858]
[1772213848722,2.46522111,1919.3,1918.4,0.49108747]
[1772213849124,2.46522111,1919.3,1918.3,1.065]
[1772213849329,1.58036872,1919.5,1918.3,1.065]
[1772213850037,2.92258983,1919.3,1918.3,1.065]
[1772213850219,4.04558983,1919.3,1918.3,1.065]
[1772213850416,1.30262609,1919.2,1918.4,1.3031693]
[1772213850622,1.30260095,1919.3,1918.4,1.79425677]
[1772213850926,1.30365546,1920.0,1918.8,2.46522111]
[1772213851254,1.30365546,1920.0,1918.9,1.064]
[1772213851627,1.30365546,1920.0,1918.9,1.55508747]
[1772213852353,3.76887657,1920.0,1918.9,1.064]
[1772213852559,0.45736872,1919.9,1918.9,1.064]
[1772213852862,0.45736872,1919.7,1919.0,1.30276185]
[1772213853224,2.42621898,1919.8,1919.0,1.30276185]
[1772213853460,2.8835877,1919.8,1919.0,1.30276185]
[1772213854327,0.45736872,1919.7,1918.9,2.36677376]
[1772213854959,1.30235465,1919.6,1918.9,2.36677376]
[1772213855143,4.22494448,1919.6,1918.6,1.30296554]
[1772213855351,5.34894448,1919.6,1918.6,1.30296554]
[1772213855533,1.124,1919.5,1918.6,1.30296554]
[1772213856849,1.30255822,1919.3,1918.5,2.36605583]
[1772213858559,0.00153886,1920.0,1919.1,0.48544182]
[1772213858738,0.45890758,1920.0,1919.2,1.30262609]
[1772213860057,0.001,1919.6,1919.2,1.30262609]
[1772213861340,0.001,1919.6,1918.8,5.21106833]
[1772213862344,0.001,1919.6,1918.9,4.175258]
[1772213862669,0.45389801,1920.9,1919.3,0.46381948]
[1772213862869,0.45389801,1920.9,1919.7,3.843]
[1772213863235,1.75541044,1920.9,1919.8,1.30221898]
[1772213863561,0.45389801,1920.9,1919.8,2.83103846]
[1772213864035,1.75537801,1920.9,1919.8,2.83103846]
[1772213864359,0.45389801,1920.9,1919.8,2.83103846]
[1772213864677,1.75537897,1920.9,1919.8,2.83103846]
[1772213864845,0.501,1921.7,1920.2,2.71763062]
[1772213865155,0.5,1921.6,1920.3,1.066]
[1772213865352,0.5,1921.4,1920.4,1.30181212]
[1772213865541,1.62,1921.4,1920.4,1.30181212]
[1772213865747,0.5,1921.3,1920.4,1.30181212]
[1772213865965,0.5,1921.3,1920.0,1.30208333]
[1772213866270,0.5,1921.3,1920.0,1.30362219]
[1772213866758,0.5,1921.1,1920.0,1.30362219]
[1772213867455,0.5,1920.9,1920.0,0.00153886]
[1772213867658,0.5,1921.5,1920.2,2.18038481]
[1772213868026,1.619,1921.5,1920.2,2.18038481]
[1772213868232,0.5,1921.5,1920.2,2.18038481]
[1772213868470,0.5,1921.5,1920.4,2.0685]
[1772213868657,0.5,1921.5,1920.3,7.825885]
[1772213868850,0.5,1921.5,1920.3,6.273385]
[1772213869165,0.5,1921.5,1920.1,2.188176]
[1772213869466,0.5,1921.2,1920.2,1.30194771]
[1772213870970,0.5,1921.2,1920.3,1.067]
[1772213871561,0.5,1921.2,1920.4,1.30181212]
[1772213871945,1.80127463,1921.2,1920.4,1.30181212]
[1772213872451,0.5,1921.2,1920.4,1.30181212]
[1772213872653,0.001,1921.4,1920.4,1.30181212]
[1772213872837,0.001,1921.4,1920.5,3.953861]
[1772213873562,0.001,1921.4,1920.6,1.30167655]
[1772213874151,0.001,1921.4,1920.7,1.067]
[1772213875266,0.501,1921.4,1920.6,1.30167655]
[1772213875435,0.501,1921.4,1920.6,4.094111]
[1772213875436,0.001,1921.4,1920.6,4.094111]
[1772213875645,0.001,1921.4,1920.6,2.459]
[1772213875963,0.001,1921.4,1920.7,1.067]
[1772213876764,0.501,1921.4,1920.7,1.067]
[1772213876966,0.5,1921.3,1920.7,1.067]
[1772213877267,0.001,1921.4,1920.7,1.067]
[1772213877459,0.001,1921.4,1920.7,6.27316409]
[1772213877776,0.001,1921.4,1920.8,1.30154102]
[1772213878760,0.501,1921.4,1920.8,1.30154102]
[1772213880269,0.001,1921.4,1920.8,1.30154102]
[1772213882270,0.501,1921.4,1920.8,1.30154102]
[1772213882460,0.501,1921.4,1920.6,1.30162303]
[1772213883458,0.501,1921.4,1920.5,2.37172134]
[1772213883856,0.00153886,1922.0,1920.9,16.921454]
[1772213884174,0.00153886,1922.0,1920.8,1.48839726]
[1772213884175,0.00153886,1922.0,1921.1,2.031366]
[1772213885479,0.50153886,1922.0,1921.1,3.286366]
[1772213885977,0.50153886,1922.0,1921.2,1.30127003]
[1772213886887,0.001,1921.3,1921.2,1.30127003]
[1772213887966,0.001,1921.3,1921.1,5.20508015]
[1772213888184,1.29998583,1923.1,1921.3,2.59781259]
[1772213888492,0.5,1923.0,1921.5,0.18685624]
[1772213888695,0.5,1923.4,1921.6,11.928341]
[1772213888859,0.5,1923.4,1922.1,5.907163]
[1772213889061,0.5,1923.4,1922.2,1.08]
[1772213889264,0.5,1923.4,1922.3,2.59781258]
[1772213889866,0.5,1923.4,1922.4,1.30045776]
[1772213889867,0.5,1923.3,1922.4,1.30045776]
[1772213890580,1.11,1923.9,1922.4,1.30045776]
[1772213890581,1.79954499,1923.8,1922.5,2.964928]
[1772213890871,0.5,1923.7,1922.4,1.30045776]
[1772213891262,0.5,1923.5,1922.4,1.30045776]
[1772213891775,0.5,1923.5,1922.5,1.081]
[1772213892098,0.5,1923.4,1922.6,1.30032247]
[1772213894173,1.79979853,1923.4,1922.6,1.30032247]
[1772213894392,0.5,1923.3,1922.6,1.30032247]
[1772213895098,5.19778733,1923.9,1922.6,1.30032247]
[1772213895099,0.5,1924.1,1922.7,0.18685624]
[1772213895393,0.5,1923.9,1922.8,6.373519]
[1772213895593,0.5,1923.9,1922.9,1.082]
[1772213895795,0.5,1923.9,1922.7,4.25642]
[1772213896094,0.5,1923.8,1922.9,1.30011961]
[1772213896903,0.5,1923.6,1922.7,2.38220149]
[1772213897100,5.19918211,1924.0,1922.7,2.38220149]
[1772213897101,0.00153886,1924.0,1922.7,2.38220149]
[1772213897396,0.5,1923.9,1922.7,2.38220149]
[1772213897594,0.5,1923.9,1922.8,1.083]
[1772213897768,0.5,1923.9,1922.9,4.927773]
[1772213897964,0.5,1923.9,1922.8,1.083]
[1772213898378,0.5,1923.7,1922.9,1.30011961]
[1772213898581,0.5,1923.7,1922.4,1.30045776]
[1772213898781,0.5,1923.7,1922.4,2.38345776]
[1772213899474,1.109,1923.6,1922.4,2.38345776]
[1772213899684,0.5,1923.5,1922.4,2.38345776]
[1772213900575,1.109,1923.6,1922.4,2.38345776]
[1772213900576,0.5,1923.3,1922.4,2.38345776]
[1772213904076,0.5,1923.4,1922.4,2.38345776]
[1772213904290,0.5,1923.7,1922.9,3.44530018]
[1772213904477,0.5,1923.7,1923.0,1.083]
[1772213904679,0.001,1923.8,1923.1,1.2999844]
[1772213905191,0.5,1924.5,1923.2,3.44530018]
[1772213905391,0.5,1924.5,1923.1,1.2999844]
[1772213905392,0.5,1924.4,1923.1,1.2999844]
[1772213905585,0.5,1924.4,1923.2,3.289]
[1772213905900,0.47820199,1925.0,1923.8,0.33857544]
[1772213906200,0.47820199,1925.0,1924.0,0.00153886]
[1772213906705,0.47820199,1924.8,1924.0,0.00153886]
[1772213907505,5.19507506,1925.0,1924.0,0.00153886]
[1772213907506,1.2987477,1925.0,1924.0,0.00153886]
[1772213907905,5.19462621,1925.1,1924.0,0.00153886]
[1772213907906,0.47820199,1925.5,1924.1,3.44530018]
[1772213908110,0.47820199,1925.5,1924.1,4.704618]
[1772213908785,0.47820199,1925.3,1924.2,1.29924124]
[1772213908987,0.47820199,1925.3,1924.3,1.093]
[1772213909181,0.47820199,1925.3,1924.4,3.44530018]
[1772213909904,0.47820199,1925.3,1924.3,1.093]
[1772213910199,0.47820199,1925.3,1924.4,3.44530018]
[1772213910403,0.47820199,1925.3,1924.3,1.093]
[1772213910825,0.47820199,1925.3,1924.4,1.29910621]
[1772213910826,1.77670251,1925.3,1924.4,1.29910621]
[1772213910985,0.47820199,1925.2,1924.3,2.39213067]
[1772213911391,0.47820199,1925.1,1924.0,1.30087748]
[1772213911903,0.47820199,1925.0,1924.1,3.44530018]
[1772213912106,5.67190348,1925.5,1924.2,0.49168724]
[1772213912296,5.67190348,1925.5,1924.2,1.094]
[1772213912297,0.47820199,1925.3,1924.2,1.094]
[1772213912803,1.29863383,1925.1,1924.2,1.29924124]
[1772213913064,0.47820199,1925.0,1924.2,1.29924124]
[1772213913186,0.47820199,1925.0,1924.0,1.30086413]
[1772213914209,0.47820199,1924.7,1923.9,2.3924373]
[1772213914583,0.47820199,1924.6,1923.9,2.3924373]
[1772213914806,0.47820199,1924.6,1923.5,2.39271406]
[1772213915005,0.47820199,1924.4,1923.5,2.39271406]
[1772213915224,0.47820199,1924.4,1923.5,1.29971406]
[1772213915557,0.47820199,1924.4,1923.3,1.2997938]
[1772213915810,4.74433889,1924.5,1923.1,5.19966722]
[1772213915811,0.47820199,1924.1,1923.1,5.19966722]
[1772213916027,0.47820199,1923.9,1923.1,5.19966722]
[1772213916185,0.47820199,1923.9,1923.1,1.2999844]
[1772213916512,0.47820199,1923.8,1923.0,0.00153886]
[1772213916685,0.47820199,1923.8,1923.0,1.30158604]
[1772213917008,0.47820199,1923.6,1923.0,0.00153886]
[1772213917602,0.47820199,1923.5,1923.0,0.00153886]
[1772213918892,0.47820199,1923.5,1922.9,0.0011]
[1772213918893,0.47820199,1923.5,1922.5,1.3003426]
[1772213919106,0.49348762,1923.2,1922.3,1.30052541]
[1772213921098,0.45190934,1923.0,1922.2,1.30059307]
[1772213921619,0.45190934,1923.0,1922.1,2.39060586]
[1772213922213,0.45190934,1922.8,1922.0,0.00153886]
[1772213922526,0.45190934,1922.8,1922.0,1.30221786]
[1772213923238,1.75212563,1922.8,1922.0,0.00153886]
[1772213924422,1.30021629,1922.8,1922.0,0.00153886]
[1772213924727,0.45190934,1922.7,1922.0,0.00153886]
[1772213925530,1.75221943,1922.7,1922.0,1.30226726]
[1772213925899,1.75221943,1922.7,1922.1,0.0011]
[1772213927634,0.45190934,1922.7,1922.1,0.0011]
[1772213927809,1.3001936,1922.8,1922.1,0.0011]
[1772213928009,0.45190934,1922.7,1922.1,0.0011]
[1772213928214,0.45190934,1922.7,1922.0,0.00153886]
[1772213929527,0.45190934,1922.6,1922.0,0.00153886]
[1772213929828,1.75229945,1922.5,1922.0,0.00153886]
[1772213930708,0.45190934,1922.4,1922.0,0.00153886]
[1772213931798,1.30052541,1922.3,1922.0,0.00153886]
[1772213932007,1.30046517,1922.4,1922.0,0.00153886]
[1772213932204,0.45190934,1923.0,1922.0,4.03872459]
[1772213932416,0.45190934,1923.0,1922.0,1.57560112]
[1772213933130,1.56090934,1923.0,1922.0,1.57560112]
[1772213933329,7.66306107,1923.3,1922.2,0.49206226]
[1772213933330,1.29995253,1923.2,1922.2,0.49206226]
[1772213933534,2.86081118,1923.3,1922.3,2.95518573]
[1772213933828,5.19926706,1923.4,1922.3,2.95518573]
[1772213933829,1.29983012,1923.4,1922.3,2.95518573]
[1772213934029,1.29976788,1923.5,1922.4,2.38245776]
[1772213934231,1.109,1923.5,1922.5,2.95518573]
[1772213934432,2.86061107,1923.6,1922.6,0.49206226]
[1772213934833,1.75161107,1923.6,1922.6,0.49206226]
[1772213935034,5.19952993,1924.0,1922.5,2.46312347]
[1772213935035,1.75282797,1924.0,1922.5,0.49206226]
[1772213935330,1.75282797,1924.0,1922.8,2.95518573]
[1772213935536,1.11,1923.9,1922.8,2.95518573]
[1772213936419,1.29950378,1923.9,1923.0,0.49206226]
[1772213937342,2.46312347,1923.6,1922.7,1.79230265]
[1772213937523,3.57312347,1923.6,1922.7,1.79230265]
[1772213937722,1.11,1923.6,1922.7,1.30024039]
[1772213938020,1.11,1923.6,1922.5,5.20134844]
[1772213938233,2.46312347,1923.5,1922.5,5.20134844]
[1772213938429,1.2999168,1923.2,1922.3,5.20192495]
[1772213939119,2.4089168,1923.2,1922.3,1.30052541]
[1772213940544,5.32394961,1923.2,1922.2,2.38056055]
[1772213940742,5.32394961,1923.2,1922.2,0.0011]
[1772213940743,2.91503281,1923.0,1922.2,0.0011]
[1772213940925,2.46312347,1922.8,1922.2,0.0011]
[1772213941256,1.108,1922.8,1922.2,0.0011]
[1772213942455,0.001,1923.1,1922.2,0.0011]
[1772213942456,0.001,1923.1,1922.4,1.30045776]
[1772213943045,0.001,1923.1,1922.4,1.79252002]
[1772213943429,0.001,1923.1,1922.4,1.30045776]
[1772213943630,0.001,1923.1,1922.3,1.30047247]
[1772213944653,1.3009844,1923.1,1922.2,3.95473927]
[1772213946366,1.3009844,1923.1,1922.2,6.909925]
[1772213946738,0.001,1923.1,1922.3,0.49206226]
[1772213947147,2.46312347,1923.6,1922.2,6.41786274]
[1772213947148,5.26492478,1924.0,1922.5,2.46312347]
[1772213947366,1.29944383,1923.9,1923.0,0.49206226]
[1772213947551,1.3009691,1924.0,1923.0,0.49206226]
[1772213948059,0.00153886,1924.0,1923.3,0.49206226]
[1772213948767,1.30024015,1925.0,1924.0,0.49206226]
[1772213948947,1.55790934,1924.9,1923.9,1.29944383]
[1772213949461,1.55790934,1924.9,1923.6,1.57106226]
[1772213949462,0.45190934,1924.6,1923.6,1.29959285]
[1772213949763,1.106,1924.5,1923.6,1.29959285]
[1772213949964,0.45190934,1924.4,1923.5,1.29967365]
[1772213950263,0.45190934,1924.4,1923.3,1.079]
[1772213950463,2.95768857,1924.3,1923.3,2.37884828]